Cogmind - Beta 15 @@@ ROGUE MODE // 2025.06.02 @ 15:42:13 Player: Wyvric Result: Destroyed by D-53 Grenadier with Mini Grenade Launcher Performance ------------- Evolutions (0) 0 Regions Visited (2) 400 Robots Destroyed (25) 125 Value Destroyed (655) 655 Prototype IDs (0) 0 Alien Tech Used (0) 0 Bonus (0) 0 TOTAL SCORE: 1180 Bonus ------- None Cogmind --------- Core Integrity 0/250 Matter 290/300 Energy 24/125 System Corruption 0% Temperature Warm (120) Movement Core (1450) Ox28 Location -10/Mines Parts ------- > --- POWER (1) -------- Light Ion Engine > --- PROPULSION (2) --- (None) > --- UTILITY (2) ------ Huge Storage Unit > --- WEAPON (2) ------- Beam Cannon > --- INVENTORY (25) --- Light Ion Engine Aluminum Leg Aluminum Leg Wheel Wheel Huge Storage Unit High-capacity Matter Pod (200) Structural Scanner Core Shielding Medium Laser Medium Laser Beam Cannon Beam Cannon Beam Cannon Light Assault Rifle Datajack Hammer Hammer Hammer Hammer Makeshift Axe Peak State ------------ > --- POWER ------------ Light Ion Engine > --- PROPULSION ------- Light Treads Light Treads > --- UTILITY ---------- Improved Heat Sink Huge Storage Unit > --- WEAPON ----------- Beam Cannon Light Cannon > --- INVENTORY -------- Light Ion Engine Light Ion Engine Light Treads Aluminum Leg Aluminum Leg Wheel Wheel Huge Storage Unit Structural Scanner Core Shielding Medium Laser Medium Laser Small Laser Beam Cannon Beam Cannon Light Assault Rifle Hammer Hammer Hammer Hammer [Rating: 11] Favorites ----------- Power Light Ion Engine Engine Light Ion Engine Propulsion Light Treads Treads Light Treads Utility Improved Heat Sink Device Improved Heat Sink Storage Huge Storage Unit Processor Signal Interpreter Weapon Beam Cannon Energy Gun Medium Laser Energy Cannon Beam Cannon Ballistic Gun Assault Rifle Ballistic Cannon Light Cannon Impact Weapon Hammer Build | -11 -10 -10 ------- Run | Yrd Mat Min Slots Evolved . | . . . Power . | . . . Propulsion . | . . . Utility . | . . . Weapon . | . . . Parts Attached 20 | 6 9 5 Power 2 | 1 . 1 Engine 2 | 1 . 1 Core . | . . . Reactor . | . . . Propulsion 3 | 2 . 1 Treads 3 | 2 . 1 Leg . | . . . Wheel . | . . . Hover . | . . . Flight . | . . . Utility 8 | 1 5 2 Device 3 | . 2 1 Storage 4 | 1 3 . Processor 1 | . . 1 Hackware . | . . . Protection . | . . . Artifact . | . . . Weapon 7 | 2 4 1 Energy Gun 1 | 1 . . Energy Cannon 3 | . 2 1 Ballistic Gun 1 | 1 . . Ballistic Cannon 1 | . 1 . Launcher . | . . . Special Weapon . | . . . Impact Weapon 1 | . 1 . Slashing Weapon . | . . . Piercing Weapon . | . . . Special Melee Weapon . | . . . Unidentified Prototypes . | . . . Parts Lost 8 | . . 8 Power 1 | . . 1 Propulsion 3 | . . 3 Utility 1 | . . 1 Weapon 3 | . . 3 Highest Loss Streak 8 | . . 8 To Critical Strikes . | . . . Average Backups 17 | 2 14 24 Power 1 | . 1 1 Propulsion 4 | 1 4 4 Utility 2 | . 1 3 Weapon 9 | . 6 13 Tool/Special . | . . . Unused Backups 19 | . 1 18 Power 1 | . . 1 Propulsion 4 | . . 4 Utility 3 | . 1 2 Weapon 10 | . . 10 Tool/Special 1 | . . 1 Average Slot Usage (%) 97 | . 95 99 Engine 13 | . 13 13 Treads 27 | . 27 27 Device 11 | . 9 13 Storage 14 | . 14 14 Energy Cannon 13 | . 13 14 Ballistic Cannon 12 | . 12 13 Peak Build Rating 11 | 6 11 11 Average Rating 9 | 4 8 10 On Entrance 5 | . 6 11 Naked Turns . | . . . Heaviest Build 90 | 12 90 90 Greatest Support 40 | 40 40 40 Greatest Overweight (x) 2 | . 2 2 Average Overweight (x) 1 | . . 2 Largest Inventory Capacity 25 | 8 25 25 Average Capacity 19 | 6 16 25 Most Carried 25 | 6 24 25 Average Carried 18 | 3 14 24 Final Capacity 25 | 8 25 25 Final Carried 24 | 6 24 21 Class Distribution -------------------- 100% | Mutant Dominant Class ---------------- Mutant | -10/Materials Mutant | -10/Mines Resources | -11 -10 -10 ----------- Run | Yrd Mat Min Matter Collected 623 | 252 313 58 Remotely . | . . . Salvage Created 816 | . 731 85 Parts 49 | . 45 4 Haulers Intercepted 2 | . 2 . Recyclers Shooed . | . . . Parts Field Recycled . | . . . Retrieved Matter . | . . . Parts Self-Destructed . | . . . Prevented . | . . . Kills | -11 -10 -10 ------- Run | Yrd Mat Min Combat Hostiles Destroyed 21 | . 20 1 Guns 1 | . 1 . Cannons 20 | . 19 1 Classes Destroyed 5 | . 4 1 Worker 2 | . 1 1 Hauler 2 | . 2 . Swarmer 5 | . 5 . Grunt 15 | . 15 . Demolisher 1 | . . 1 Best Kill Streak 3 | . 3 1 Combat Bots Only 3 | . 3 1 Max Kills in Single Turn 1 | . 1 1 Gunslinging . | . . . Exploded . | . . . Melee . | . . . Uniques/NPCs Destroyed . | . . . Combat | -11 -10 -10 -------- Run | Yrd Mat Min Hostile Shots Fired 75 | . 56 19 Missed 21 | . 20 1 Hits 54 | . 36 18 Projectile 54 | . 36 18 AOE 19 | . . 19 Damage Taken 1255 | . 416 839 Core 252 | . 99 153 Absorbed by Shields . | . . . Core Remaining (%) 100 | 100 . . Volleys Fired 66 | . 57 9 Largest 2 | . 2 2 Hottest 120 | . 90 120 Shots Fired 128 | . 111 17 Gun 2 | . 2 . Cannon 126 | . 109 17 Launcher . | . . . Special . | . . . Kinetic 56 | . 55 1 Thermal 72 | . 56 16 Explosive . | . . . Electromagnetic . | . . . Robot Hit Streak 7 | . 7 4 Robot Miss Streak 4 | . 4 3 Penetration Max . | . . . Secondary Targets . | . . . Shots Hit Robots 71 | . 62 9 Core Hits 31 | . 26 5 Critical Kills . | . . . Critical Parts Destroyed . | . . . Critical Strikes 1 | . 1 . Blast 1 | . 1 . Melee Attacks 1 | . 1 . Impact 1 | . 1 . Slashing . | . . . Piercing . | . . . Sneak Attacks . | . . . Combat Hostiles . | . . . Follow-up Attacks . | . . . Damage Inflicted 1314 | . 1139 175 Guns 14 | . 14 . Cannons 1239 | . 1083 156 Explosions . | . . . Melee . | . . . Ramming 61 | . 42 19 Kinetic 538 | . 538 . Thermal 715 | . 559 156 Explosive . | . . . Electromagnetic . | . . . Impact . | . . . Slashing . | . . . Piercing . | . . . Highest Corruption . | . . . Average Corruption . | . . . Corruption Purged . | . . . Corruption Blocked . | . . . Overload Shots . | . . . Overflow Damage . | . . . Projectiles . | . . . Explosions . | . . . Melee . | . . . Knockbacks 10 | . 10 . Impact . | . . . Kinetic 10 | . 10 . Secondary . | . . . Self-Inflicted Damage . | . . . Shots . | . . . Rammed 11 | . 8 3 Targets Rammed 11 | . 8 3 Kicked . | . . . Crushed . | . . . Highest Temperature 180 | . 180 120 Average Temperature 50 | . 56 23 Received Heat Transfer 159 | . 159 . Siege Activations . | . . . Martial Activations . | . . . Shielding Activations . | . . . Robots Disrupted . | . . . Combat Hostiles . | . . . Robots Corrupted . | . . . Combat Hostiles . | . . . Parts Fried . | . . . Impact Corruptions . | . . . Robots Melted . | . . . Combat Hostiles . | . . . Parts Melted . | . . . Heat Transferred 1517 | . 1184 333 Parts Sabotaged . | . . . Parts Stolen . | . . . Parts Stripped . | . . . Power Chain Reactions . | . . . Alert | -11 -10 -10 ------- Run | Yrd Mat Min Maximum Alert Level 1 | . 1 . Low Security (%) 68 | 100 45 100 Level 1 31 | . 54 . Level 2 . | . . . Level 3 . | . . . Level 4 . | . . . Level 5 . | . . . High Security . | . . . Max Security . | . . . Peak Influence 311 | . 311 112 Initial 112 | . . 112 Average 103 | . 171 9 Influence Increases 836 | . 801 35 Destroy 0b10 Robot/C 420 | . 400 20 Destroy 0b10 Robot/NC 20 | . 15 5 Destroy Leader 104 | . 94 10 Successful Hack 35 | . 35 . Select Force Hacks 60 | . 60 . Disable Machine 15 | . 15 . Destroy Structure 2 | . 2 . Lose Combat Pursuer 180 | . 180 . Influence Decreases 836 | . 513 323 Entered New Map 176 | . . 176 Time Decay 634 | . 513 121 Lost Part 26 | . . 26 Squads Dispatched 6 | . 6 . Investigation 5 | . 5 . Extermination . | . . . Reinforcement 1 | . 1 . Assault . | . . . Garrison . | . . . Intercept . | . . . Searches Triggered . | . . . Construction Impeded . | . . . Haulers Reinforced . | . . . Active Scanning Responses . | . . . Cargo Convoy Interrupts . | . . . Stealth | -11 -10 -10 --------- Run | Yrd Mat Min Distress Signals 3 | . 3 . Communications Jammed . | . . . Distress Signals . | . . . Times Spotted 50 | . 48 2 Peak Tracking Total 4 | . 4 2 Tactical Retreats 12 | . 12 . Traps | -11 -10 -10 ------- Run | Yrd Mat Min Traps Triggered 8 | . 8 . Indirectly . | . . . Trap Hack Attempts . | . . . Triggered . | . . . Disarmed . | . . . Reprogrammed . | . . . Reused . | . . . Traps Extracted . | . . . Installed . | . . . Triggered . | . . . Machines | -11 -10 -10 ---------- Run | Yrd Mat Min Machines Disabled 1 | . 1 . Max in Single Turn 1 | . 1 . Machines Repaired . | . . . Machines Dismantled . | . . . Machines Sabotaged . | . . . Overloaded Fab Kills . | . . . Hacking | -11 -10 -10 --------- Run | Yrd Mat Min Machines Accessed 7 | . 7 . Terminals 5 | . 5 . Fabricators . | . . . Repair Stations . | . . . Recycling Units 2 | . 2 . Scanalyzers . | . . . Garrison Access . | . . . Total Hacks 18 | . 18 . Successful 10 | . 10 . Failed 8 | . 8 . Catastrophic 1 | . 1 . Database Lockouts . | . . . Manual 18 | . 18 . Terminals 16 | . 16 . Fabricators . | . . . Repair Stations . | . . . Recycling Units 2 | . 2 . Scanalyzers . | . . . Garrison Access . | . . . Terminal Hacks 1 | . 1 . Part Schematic 1 | . 1 . Fabricator Hacks . | . . . Repair Station Hacks . | . . . Recycling Unit Hacks . | . . . Scanalyzer . | . . . Garrison Access Hacks . | . . . Unauthorized Hacks 9 | . 9 . Terminals 7 | . 7 . Assimilate 1 | . 1 . Botnet 2 | . 2 . Skim 4 | . 4 . Fabricators . | . . . Repair Stations . | . . . Recycling Units 2 | . 2 . Tunnel 2 | . 2 . Scanalyzers . | . . . Garrison Access . | . . . Data Cores Recovered . | . . . Used . | . . . Hacking Detections 5 | . 5 . Full Trace Events 1 | . 1 . Feedback Events . | . . . Feedback Blocked . | . . . Robot Schematics Acquired . | . . . Robots Built . | . . . Authchips . | . . . Time . | . . . Total Robot Build Rating . | . . . Part Schematics Acquired 1 | . 1 . Parts Built . | . . . Authchips . | . . . Time . | . . . Total Part Build Rating . | . . . Parts Repaired . | . . . Time . | . . . Parts Recycled . | . . . Recycled Matter . | . . . Retrieved Matter . | . . . Retrieved Components . | . . . Parts Scanalyzed . | . . . Part Schematics Acquired . | . . . Parts Damaged . | . . . Bothacking | -11 -10 -10 ------------ Run | Yrd Mat Min Used RIF Installer . | . . . Robots Hacked . | . . . Non-combat . | . . . Combat . | . . . Robot Hacks Applied . | . . . Relay Couplers Released . | . . . Fabnet Peak Effective % . | . . . Robots Rewired . | . . . Allies Hacked . | . . . Hacks Repelled . | . . . Allies | -11 -10 -10 -------- Run | Yrd Mat Min Total Allies 1 | . . 1 Largest Group 1 | . . 1 Highest-Rated Group 31 | . . 31 Highest-Rated Ally 31 | . . 31 Total Orders . | . . . Ally Attacks . | . . . Total Damage . | . . . Kills . | . . . Allies Corrupted . | . . . Allies Melted . | . . . Intel | -11 -10 -10 ------- Run | Yrd Mat Min Active Infowar (turns) 65 | . . 65 Structural 65 | . . 65 Robot Analysis Total . | . . . Derelict Logs Recovered 2 | . . 2 Drone Launches . | . . . Drone Recoveries . | . . . Exploration | -11 -10 -10 ------------- Run | Yrd Mat Min Turns Passed 3722 | 95 2154 1473 Spaces Moved 1338 | 53 841 444 Core 3 | 3 . . Treads 1335 | 50 841 444 Legs . | . . . Wheels . | . . . Hover . | . . . Flight . | . . . Fastest Speed 50 | 50 160 320 Average Speed 239 | 153 202 320 Slowest Speed 320 | 160 320 320 Overloaded Moves . | . . . Propulsion Burnouts . | . . . Robots Hopped . | . . . Potential Cave-ins . | . . . Cave-ins Triggered . | . . . Exploration Rate (%) 64 | 5 100 89 Regions Visited 2 Branch Regions 1 Pre-discovered Areas 4 | . 2 2 Known Exits Taken . | . . . Unknown Exits Taken 2 | 1 1 . Scrap Searched 2 | . . 2 Spaces Dug . | . . . Terrain Destroyed . | . . . Melee . | . . . Projectile . | . . . AOE . | . . . Terrain Rammed . | . . . Walls Destroyed . | . . . Machines Disabled . | . . . Actions | -11 -10 -10 --------- Run | Yrd Mat Min Total 1704 | 64 1166 474 Wait 226 | . 220 6 Move 1336 | 52 840 444 Hop . | . . . Pick Up 29 | 6 20 3 Fast Attach 13 | 6 7 . Attach 6 | . 1 5 Detach . | . . . Swap 9 | . 7 2 Drop 7 | . 5 2 Fire 66 | . 57 9 Melee 1 | . 1 . Ram . | . . . Kick . | . . . Crush 11 | . 8 3 Escape Stasis . | . . . Rewire . | . . . Trap . | . . . Miscellaneous . | . . . Route ------- -11/Scrapyard -10/Materials (discovered 6 exits: [*Mat x3] / [*Min x2] / *Sub) -10/Mines (discovered 3 exits: [*Mat x2] / *Sub) History --------- Turn | Location | Event 3 | -11/Scrapyard | Discovered new exit (range 16) 96 | -11/Scrapyard | Entered Materials 279 | -10/Materials | Discovered new exit (range 13) 302 | -10/Materials | Build established: Mutant 744 | -10/Materials | Discovered new exit (range 15) 884 | -10/Materials | Discovered new exit (range 4) 968 | -10/Materials | Discovered new exit (range 11) 1170 | -10/Materials | Discovered new exit (range 6) 1327 | -10/Materials | Discovered new exit (range 12) 2250 | -10/Materials | Entered Mines 2398 | -10/Mines | Discovered new exit (range 5) 2418 | -10/Mines | Identified exit to Subcaves 2492 | -10/Mines | A weapon hastily lodged in a ceiling crevice suddenly fell to the ground 2701 | -10/Mines | Discovered new exit (range 8) 2900 | -10/Mines | Deemed a non-threat by the Exiles lab entrance 3370 | -10/Mines | Received a Mining Laser from a helpful Derelict 3641 | -10/Mines | Discovered new exit (range 13) 3645 | -10/Mines | Assembled infested the area 3650 | -10/Mines | Assisted by a Guerilla fighting off Assembled 3706 | -10/Mines | Core integrity fell below 50% 3720 | -10/Mines | Core integrity fell below 20% 3723 | -10/Mines | Destroyed by D-53 Grenadier with Mini Grenade Launcher Last Messages --------------- 03661_ Acquired Hcp. Matter Pod. 03697_ C-30 ARC bursts open, deploying its payload. 03697_ D-53 Grenadier unfolds itself. 03697_ Lgt. Treads destroyed. 03697_ Lgt. Cannon destroyed. 03699_ Lgt. Ion Engine destroyed. 03699_ Lgt. Treads destroyed. 03701_ The unstable cave ceiling collapses. 03704_ R-06 Scavenger collects Sml. Laser. 03705_ Beam Cannon destroyed. 03706_ D-53 Grenadier destroyed. 03707_ R-06 Scavenger collects Launcher Guidance Computer. 03709_ The unstable cave ceiling collapses. 03715_ Lgt. Treads destroyed. 03715_ Imp. Heat Sink destroyed. 03716_ R-06 Scavenger collects Cmb. Airjet. 03719_ The unstable cave ceiling collapses. 03721_ Beam Cannon destroyed. Map ----- +----------------------------------------------------+ | | | | | | | | | | | | | | | | | | | | | | | | | ????????????????????????????????????????????????? | | ????????????????????????????????????????????????? | | ????????????????????????????????????????????????? | | ????????????????????????????????????????????????? | | ????????????????????????????????????????????????? | | ????????????????????????????????????????????????# | | ????????????????????????????????????????????????# | | ??????????????????????##????????????????????????# | | ???????????????????#### ####????????????????????# | | ???????????????????# ##???????????????????# | | ???????????????????# ##??????????????????# | | ???????????????????# #??????????????????# | | ????????????????#### #??????????????????# | | ???????????????## @ #??????????????????# | | ???????????????# #??????????????????? | | ???????????????# < #??????????????????? | | ???????????????## #??????????????????? | | ????????????????## ! # ???????????????? | | ?????????????????### !!! ### ??????????????? | | ???????????????????# !!! #??# #?????????????? | | ???????????????????# !! ! #???# ##?????????????? | | ???????????????????# %d##???###??????????????? | | ???????????????????##### ##???????????????????? | | ??????????????????????# r ###############?????? | | ??????????????????????# *%!*!%! #?????? | | ??????????????????????# ############## #?????? | | ?????????????????????# ##????????????# ######? | | ????????????????????# #?????????????# #? | | ???????????????????# #?????????????###### #? | | ?????????????????? ##??????????????????# #? | | ???????????????? #????????####????????# #? | | ??????????????? #?####????# ##???????# ## | | ?????????????? #?## ##???# ##??????# | | ??????????????? ??# #???# ##?????#### | | ??????????????? #??# ##?## ##???????? | | ???????????????? ####???## ### ##??????? | | ?????????????????????????## #??????? | | ?????????????????????????## ### #??????? | +----------------------------------------------------+ Best States ------------- Heat Dissipation 39 Energy Generation 10 Energy Capacity 125 Matter Stores 300 Matter Capacity 300 Sight Range 16 Terrain Scan Density 10 Evasion (%) 40 Recoil Reduction 2 Item Schematics ----------------- Huge Storage Unit | -10/Materials | Hacked Robot Schematics ------------------ None Fabricated ------------ Nothing Repaired ---------- Nothing Alien Tech Used ----------------- None Achievements -------------- None Challenges ------------ None Game ------ Seed BurstGravjetPerforator Manual? 0 Play Time 00:14:42 Cumulative 646.1 hours Start 2025.06.02 @ 15:29:42 End 2025.06.02 @ 15:42:13 Sessions 1 Manual Loads 0 Difficulty Rogue Special Mode None Game No. 144 Rogue 144 Adventurer 0 Explorer 0 Win Type - Total 39 Types 11/6/7/1/1/1/8/2/1/1 Lore% 69 Gallery% 83 Achievement% 80 Wizard Run 0 Options --------- Layout 1 ASCII 0 Keyboard 0 Movement Numpad Keybinds 0 Fullscreen 2 Font 24/Smallcaps Map View 50x35 Zoom Use 0% Tactical HUD 1 Map Filters NONE Filters NONE Steam 1 RUN: 9cd07b78-372e-4783-8dba-3aa91b9c979a